[Event "Titled Tuesday Blitz August 22 Early 2023"]
[White "Sun, Rick"]
[Black "Harsh Suresh"]
[WhiteFideId "30909481"]
[BlackFideId "45018464"]
[WhiteElo "2634"]
[BlackElo "2879"]
[Result "0-1"]
[Round "3"]
[TimeControl "180+1"]
[Date "2023.08.22"]
[WhiteClock "0:00:00"]
[BlackClock "0:00:19"]
[Board "38"]

1. d4 {[%clk 0:03:00]}  g6 {[%clk 0:02:57]} 2. Nc3 {[%clk 0:03:01]}  Nf6 {[%clk 0:02:56]} 3. e4 {[%clk 0:03:01]}  d5 {[%clk 0:02:57]} 4. e5 {[%clk 0:03:00]}  Ne4 {[%clk 0:02:57]} 5. Bd3 {[%clk 0:03:00]}  Nxc3 {[%clk 0:02:57]} 6. bxc3 {[%clk 0:03:01]}  c5 {[%clk 0:02:58]} 7. Nf3 {[%clk 0:03:00]}  Bg7 {[%clk 0:02:57]} 8. O-O {[%clk 0:03:00]}  O-O {[%clk 0:02:57]} 9. Bg5 {[%clk 0:02:46]}  Nc6 {[%clk 0:02:56]} 10. Qd2 {[%clk 0:02:42]}  Bg4 {[%clk 0:02:53]} 11. Qf4 {[%clk 0:02:36]}  Bxf3 {[%clk 0:02:53]} 12. gxf3 {[%clk 0:02:37]}  f6 {[%clk 0:02:40]} 13. exf6 {[%clk 0:02:36]}  exf6 {[%clk 0:02:41]} 14. Bh6 {[%clk 0:02:35]}  c4 {[%clk 0:02:32]} 15. Bxg7 {[%clk 0:02:26]}  Kxg7 {[%clk 0:02:32]} 16. Be2 {[%clk 0:02:26]}  Qb8 {[%clk 0:02:27]} 17. Qg4 {[%clk 0:02:10]}  Qc8 {[%clk 0:02:23]} 18. Rab1 {[%clk 0:02:04]}  b6 {[%clk 0:02:22]} 19. Rfe1 {[%clk 0:01:57]}  h5 {[%clk 0:02:16]} 20. Qg3 {[%clk 0:01:53]}  Qd7 {[%clk 0:02:16]} 21. f4 {[%clk 0:01:51]}  Kf7 {[%clk 0:02:10]} 22. Bf3 {[%clk 0:01:34]}  Ne7 {[%clk 0:02:10]} 23. Qg2 {[%clk 0:01:05]}  Rad8 {[%clk 0:02:09]} 24. a4 {[%clk 0:01:04]}  Qxa4 {[%clk 0:01:19]} 25. Rxe7+ {[%clk 0:00:50]}  Kxe7 {[%clk 0:01:20]} 26. Re1+ {[%clk 0:00:50]}  Kd6 {[%clk 0:00:55]} 27. Bxd5 {[%clk 0:00:47]}  Rde8 {[%clk 0:00:53]} 28. Rf1 {[%clk 0:00:09]}  Qxc2 {[%clk 0:00:45]} 29. Bb7 {[%clk 0:00:09]}  Qa4 {[%clk 0:00:37]} 30. Qd5+ {[%clk 0:00:03]}  Kc7 {[%clk 0:00:37]} 31. Rb1 {[%clk 0:00:02]}  Qd7 {[%clk 0:00:33]} 32. Qf3 {[%clk 0:00:02]}  Qg4+ {[%clk 0:00:33]} 33. Qxg4 {[%clk 0:00:02]}  hxg4 {[%clk 0:00:34]} 34. Bg2 {[%clk 0:00:02]}  Rb8 {[%clk 0:00:28]} 35. Bd5 {[%clk 0:00:03]}  b5 {[%clk 0:00:28]} 36. Ra1 {[%clk 0:00:03]}  Kb6 {[%clk 0:00:28]} 37. Re1 {[%clk 0:00:03]}  Rbe8 {[%clk 0:00:27]} 38. Ra1 {[%clk 0:00:03]}  Rd8 {[%clk 0:00:26]} 39. Be6 {[%clk 0:00:03]}  f5 {[%clk 0:00:26]} 40. Rb1 {[%clk 0:00:04]}  Kc6 {[%clk 0:00:26]} 41. Kg2 {[%clk 0:00:03]}  Rf6 {[%clk 0:00:25]} 42. d5+ {[%clk 0:00:03]}  Kc5 {[%clk 0:00:25]} 43. Ra1 {[%clk 0:00:02]}  Kb6 {[%clk 0:00:25]} 44. Rb1 {[%clk 0:00:02]}  a5 {[%clk 0:00:25]} 45. f3 {[%clk 0:00:01]}  gxf3+ {[%clk 0:00:24]} 46. Kxf3 {[%clk 0:00:02]}  Kc5 {[%clk 0:00:25]} 47. h4 {[%clk 0:00:02]}  b4 {[%clk 0:00:25]} 48. cxb4+ {[%clk 0:00:03]}  axb4 {[%clk 0:00:26]} 49. Ke3 {[%clk 0:00:04]}  c3 {[%clk 0:00:24]} 50. Ra1 {[%clk 0:00:03]}  Kc4 {[%clk 0:00:23]} 51. Ra6 {[%clk 0:00:02]}  b3 {[%clk 0:00:20]} 52. Rc6+ {[%clk 0:00:03]}  Kb4 {[%clk 0:00:20]} 53. Kd3 {[%clk 0:00:03]}  Rxe6 {[%clk 0:00:19]} 54. Rxe6 {[%clk 0:00:02]}  Rxd5+ {[%clk 0:00:19]} 55. Ke2 {[%clk 0:00:03]}  c2 {[%clk 0:00:19]} 56. Rb6+ {[%clk 0:00:00]}  Rb5 {[%clk 0:00:19]} 0-1


[Site "https://www.chess.com"]

[Event "Titled Tuesday Blitz August 22 Early 2023"]
[White "Sharan, Rao"]
[Black "Yeletsky, Ivan"]
[WhiteFideId "5073464"]
[BlackFideId "24180327"]
[WhiteElo "2627"]
[BlackElo "2876"]
[Result "1-0"]
[Round "3"]
[TimeControl "180+1"]
[Date "2023.08.22"]
[WhiteClock "0:00:07"]
[BlackClock "0:00:00"]
[Board "39"]

1. d4 {[%clk 0:03:00]}  Nf6 {[%clk 0:02:58]} 2. Bf4 {[%clk 0:03:00]}  d6 {[%clk 0:02:58]} 3. Nf3 {[%clk 0:02:56]}  g6 {[%clk 0:02:55]} 4. Nbd2 {[%clk 0:02:55]}  Bg7 {[%clk 0:02:55]} 5. c3 {[%clk 0:02:55]}  O-O {[%clk 0:02:55]} 6. e4 {[%clk 0:02:56]}  Nc6 {[%clk 0:02:53]} 7. Be2 {[%clk 0:02:53]}  Nd7 {[%clk 0:02:47]} 8. d5 {[%clk 0:02:49]}  Nce5 {[%clk 0:02:46]} 9. Nxe5 {[%clk 0:02:45]}  Nxe5 {[%clk 0:02:47]} 10. Be3 {[%clk 0:02:29]}  e6 {[%clk 0:02:39]} 11. O-O {[%clk 0:02:22]}  exd5 {[%clk 0:02:37]} 12. exd5 {[%clk 0:02:23]}  Re8 {[%clk 0:02:36]} 13. Nf3 {[%clk 0:02:18]}  Ng4 {[%clk 0:02:31]} 14. Bd4 {[%clk 0:02:15]}  Nf6 {[%clk 0:02:30]} 15. Re1 {[%clk 0:02:09]}  Bd7 {[%clk 0:02:30]} 16. Qb3 {[%clk 0:02:06]}  b6 {[%clk 0:02:25]} 17. Rad1 {[%clk 0:02:04]}  a5 {[%clk 0:02:25]} 18. Be3 {[%clk 0:01:55]}  Ne4 {[%clk 0:02:16]} 19. h3 {[%clk 0:01:47]}  Nc5 {[%clk 0:02:15]} 20. Qc2 {[%clk 0:01:42]}  Rxe3 {[%clk 0:01:55]} 21. fxe3 {[%clk 0:01:41]}  Qe7 {[%clk 0:01:56]} 22. Bf1 {[%clk 0:01:36]}  h5 {[%clk 0:01:49]} 23. e4 {[%clk 0:01:31]}  Re8 {[%clk 0:01:45]} 24. Bc4 {[%clk 0:01:13]}  b5 {[%clk 0:01:41]} 25. Bf1 {[%clk 0:01:12]}  b4 {[%clk 0:01:42]} 26. cxb4 {[%clk 0:01:02]}  axb4 {[%clk 0:01:42]} 27. Bc4 {[%clk 0:01:02]}  Ba4 {[%clk 0:01:20]} 28. b3 {[%clk 0:01:02]}  Bd7 {[%clk 0:01:20]} 29. e5 {[%clk 0:00:57]}  dxe5 {[%clk 0:01:21]} 30. d6 {[%clk 0:00:55]}  cxd6 {[%clk 0:01:21]} 31. Qxg6 {[%clk 0:00:53]}  Ne6 {[%clk 0:01:15]} 32. Qxh5 {[%clk 0:00:41]}  Nf4 {[%clk 0:01:14]} 33. Qg5 {[%clk 0:00:32]}  Kf8 {[%clk 0:01:04]} 34. Qxe7+ {[%clk 0:00:32]}  Kxe7 {[%clk 0:01:05]} 35. Ng5 {[%clk 0:00:29]}  Rc8 {[%clk 0:00:45]} 36. Nxf7 {[%clk 0:00:22]}  Rxc4 {[%clk 0:00:44]} 37. bxc4 {[%clk 0:00:20]}  Kxf7 {[%clk 0:00:45]} 38. Rxd6 {[%clk 0:00:21]}  Be6 {[%clk 0:00:40]} 39. c5 {[%clk 0:00:17]}  Bxa2 {[%clk 0:00:38]} 40. c6 {[%clk 0:00:15]}  Ne6 {[%clk 0:00:30]} 41. c7 {[%clk 0:00:13]}  Nxc7 {[%clk 0:00:30]} 42. Rd7+ {[%clk 0:00:13]}  Kg6 {[%clk 0:00:30]} 43. Rxc7 {[%clk 0:00:14]}  b3 {[%clk 0:00:31]} 44. Rb7 {[%clk 0:00:14]}  Bf6 {[%clk 0:00:19]} 45. Kh1 {[%clk 0:00:13]}  Kf5 {[%clk 0:00:14]} 46. Re3 {[%clk 0:00:13]}  Bg5 {[%clk 0:00:14]} 47. Rexb3 {[%clk 0:00:12]}  Bxb3 {[%clk 0:00:15]} 48. Rxb3 {[%clk 0:00:13]}  e4 {[%clk 0:00:16]} 49. Kg1 {[%clk 0:00:13]}  Kf4 {[%clk 0:00:11]} 50. Kf1 {[%clk 0:00:14]}  Bf6 {[%clk 0:00:12]} 51. Rb8 {[%clk 0:00:13]}  Ke3 {[%clk 0:00:10]} 52. Rb7 {[%clk 0:00:09]}  Bh4 {[%clk 0:00:09]} 53. Rd7 {[%clk 0:00:09]}  Bg3 {[%clk 0:00:08]} 54. Rd5 {[%clk 0:00:08]}  Bh4 {[%clk 0:00:07]} 55. Rh5 {[%clk 0:00:08]}  Bg3 {[%clk 0:00:07]} 56. Rh7 {[%clk 0:00:08]}  Kd2 {[%clk 0:00:05]} 57. h4 {[%clk 0:00:07]}  Kd3 {[%clk 0:00:02]} 58. h5 {[%clk 0:00:07]}  e3 {[%clk 0:00:02]} 59. Rd7+ {[%clk 0:00:08]}  Ke4 {[%clk 0:00:03]} 60. Ke2 {[%clk 0:00:08]}  Bf4 {[%clk 0:00:02]} 61. Rb7 {[%clk 0:00:08]}  Kf5 {[%clk 0:00:02]} 62. Rg7 {[%clk 0:00:06]}  Kf6 {[%clk 0:00:01]} 63. Rg6+ {[%clk 0:00:06]}  Kf7 {[%clk 0:00:00]} 64. g4 {[%clk 0:00:07]} 1-0


[Site "https://www.chess.com"]

[Event "Titled Tuesday Blitz August 22 Early 2023"]
[White "Ibadov, Dashgyn"]
[Black "Lenderman, Aleksandr"]
[WhiteFideId "24107514"]
[BlackFideId "2021285"]
[WhiteElo "2578"]
[BlackElo "2863"]
[Result "1/2-1/2"]
[Round "3"]
[TimeControl "180+1"]
[Date "2023.08.22"]
[WhiteClock "0:00:18"]
[BlackClock "0:00:37"]
[Board "41"]

1. e4 {[%clk 0:03:00]}  d5 {[%clk 0:02:58]} 2. exd5 {[%clk 0:03:00]}  Nf6 {[%clk 0:02:59]} 3. c4 {[%clk 0:03:00]}  c6 {[%clk 0:02:58]} 4. dxc6 {[%clk 0:02:58]}  Nxc6 {[%clk 0:02:59]} 5. Nf3 {[%clk 0:02:59]}  e5 {[%clk 0:02:57]} 6. d3 {[%clk 0:02:58]}  Bc5 {[%clk 0:02:57]} 7. Be2 {[%clk 0:02:57]}  O-O {[%clk 0:02:56]} 8. O-O {[%clk 0:02:57]}  Bf5 {[%clk 0:02:56]} 9. Nc3 {[%clk 0:02:53]}  h6 {[%clk 0:02:56]} 10. a3 {[%clk 0:02:50]}  a5 {[%clk 0:02:23]} 11. Qc2 {[%clk 0:02:23]}  Re8 {[%clk 0:02:18]} 12. Ne4 {[%clk 0:02:19]}  Bxe4 {[%clk 0:02:11]} 13. dxe4 {[%clk 0:02:20]}  a4 {[%clk 0:02:11]} 14. Bd2 {[%clk 0:02:15]}  Qb6 {[%clk 0:02:04]} 15. h3 {[%clk 0:02:07]}  Nd4 {[%clk 0:02:01]} 16. Nxd4 {[%clk 0:02:06]}  Bxd4 {[%clk 0:02:01]} 17. Bc3 {[%clk 0:02:03]}  Bxc3 {[%clk 0:01:59]} 18. bxc3 {[%clk 0:02:02]}  Qc6 {[%clk 0:01:59]} 19. Rab1 {[%clk 0:01:48]}  Qxe4 {[%clk 0:01:54]} 20. Qxe4 {[%clk 0:01:22]}  Nxe4 {[%clk 0:01:55]} 21. Rxb7 {[%clk 0:01:23]}  Nxc3 {[%clk 0:01:54]} 22. Bf3 {[%clk 0:01:21]}  e4 {[%clk 0:01:54]} 23. Rc1 {[%clk 0:01:21]}  exf3 {[%clk 0:01:51]} 24. Rxc3 {[%clk 0:01:21]}  Re1+ {[%clk 0:01:51]} 25. Kh2 {[%clk 0:01:21]}  fxg2 {[%clk 0:01:51]} 26. Kxg2 {[%clk 0:01:20]}  Ra6 {[%clk 0:01:47]} 27. c5 {[%clk 0:01:16]}  Rg6+ {[%clk 0:01:47]} 28. Kf3 {[%clk 0:00:42]}  Rf6+ {[%clk 0:01:46]} 29. Kg3 {[%clk 0:00:25]}  Rc6 {[%clk 0:01:31]} 30. Rb6 {[%clk 0:00:17]}  Rxb6 {[%clk 0:01:30]} 31. cxb6 {[%clk 0:00:18]}  Rb1 {[%clk 0:01:30]} 32. Rc6 {[%clk 0:00:18]}  Rb3+ {[%clk 0:01:27]} 33. Kf4 {[%clk 0:00:18]}  Kh7 {[%clk 0:01:27]} 34. Ke5 {[%clk 0:00:16]}  Rxa3 {[%clk 0:01:18]} 35. Kd6 {[%clk 0:00:16]}  Rb3 {[%clk 0:00:38]} 36. Kc7 {[%clk 0:00:16]}  a3 {[%clk 0:00:38]} 37. b7 {[%clk 0:00:17]}  a2 {[%clk 0:00:38]} 38. Ra6 {[%clk 0:00:17]}  Rc3+ {[%clk 0:00:39]} 39. Kd7 {[%clk 0:00:17]}  Rb3 {[%clk 0:00:38]} 40. Kc7 {[%clk 0:00:18]}  Rc3+ {[%clk 0:00:38]} 41. Kd7 {[%clk 0:00:18]}  Rb3 {[%clk 0:00:37]} 42. Kc7 {[%clk 0:00:18]} 1/2-1/2


[Site "https://www.chess.com"]

[Event "Titled Tuesday Blitz August 22 Early 2023"]
[White "Santos Flores, Alberto"]
[Black "Hambleton, Aman"]
[WhiteFideId "3601234"]
[BlackFideId "2606577"]
[WhiteElo "2563"]
[BlackElo "2858"]
[Result "0-1"]
[Round "3"]
[TimeControl "180+1"]
[Date "2023.08.22"]
[WhiteClock "0:00:03"]
[BlackClock "0:00:03"]
[Board "45"]

1. e4 {[%clk 0:03:00]}  c5 {[%clk 0:02:54]} 2. Nf3 {[%clk 0:03:00]}  e6 {[%clk 0:02:51]} 3. g3 {[%clk 0:03:00]}  Nc6 {[%clk 0:02:43]} 4. Bg2 {[%clk 0:03:00]}  Nf6 {[%clk 0:02:37]} 5. Qe2 {[%clk 0:02:58]}  e5 {[%clk 0:02:34]} 6. c3 {[%clk 0:02:58]}  d6 {[%clk 0:02:34]} 7. O-O {[%clk 0:02:57]}  Be7 {[%clk 0:02:34]} 8. Rd1 {[%clk 0:02:51]}  Bg4 {[%clk 0:02:11]} 9. h3 {[%clk 0:02:47]}  Bh5 {[%clk 0:02:11]} 10. d3 {[%clk 0:02:43]}  O-O {[%clk 0:02:07]} 11. a4 {[%clk 0:02:42]}  a6 {[%clk 0:02:06]} 12. Nbd2 {[%clk 0:02:31]}  b5 {[%clk 0:02:00]} 13. axb5 {[%clk 0:02:18]}  axb5 {[%clk 0:02:01]} 14. Rxa8 {[%clk 0:02:18]}  Qxa8 {[%clk 0:02:02]} 15. Nf1 {[%clk 0:02:19]}  Qa2 {[%clk 0:01:25]} 16. Ne3 {[%clk 0:02:11]}  b4 {[%clk 0:01:16]} 17. Qc2 {[%clk 0:01:59]}  Rb8 {[%clk 0:01:04]} 18. Bd2 {[%clk 0:01:40]}  h6 {[%clk 0:00:29]} 19. Qc1 {[%clk 0:01:16]}  Bf8 {[%clk 0:00:25]} 20. Qa1 {[%clk 0:01:07]}  Ra8 {[%clk 0:00:22]} 21. Qxa2 {[%clk 0:01:04]}  Rxa2 {[%clk 0:00:23]} 22. Bc1 {[%clk 0:00:52]}  Bg6 {[%clk 0:00:06]} 23. Nc4 {[%clk 0:00:44]}  Nd7 {[%clk 0:00:02]} 24. Nh4 {[%clk 0:00:33]}  Be7 {[%clk 0:00:03]} 25. Nxg6 {[%clk 0:00:30]}  fxg6 {[%clk 0:00:03]} 26. h4 {[%clk 0:00:26]}  Kf7 {[%clk 0:00:03]} 27. Bh3 {[%clk 0:00:24]}  Nf8 {[%clk 0:00:02]} 28. Ne3 {[%clk 0:00:19]}  g5 {[%clk 0:00:02]} 29. hxg5 {[%clk 0:00:17]}  Bxg5 {[%clk 0:00:02]} 30. Kg2 {[%clk 0:00:14]}  g6 {[%clk 0:00:02]} 31. Kf3 {[%clk 0:00:14]}  h5 {[%clk 0:00:02]} 32. Bc8 {[%clk 0:00:14]}  Ke7 {[%clk 0:00:01]} 33. Bb7 {[%clk 0:00:14]}  Kd7 {[%clk 0:00:02]} 34. Bxc6+ {[%clk 0:00:13]}  Kxc6 {[%clk 0:00:02]} 35. Ke2 {[%clk 0:00:12]}  Ne6 {[%clk 0:00:02]} 36. Kf3 {[%clk 0:00:12]}  Nc7 {[%clk 0:00:02]} 37. Kg2 {[%clk 0:00:09]}  bxc3 {[%clk 0:00:02]} 38. bxc3 {[%clk 0:00:09]}  Nb5 {[%clk 0:00:03]} 39. c4 {[%clk 0:00:08]}  Nd4 {[%clk 0:00:03]} 40. Nd5 {[%clk 0:00:08]}  Bxc1 {[%clk 0:00:03]} 41. Rxc1 {[%clk 0:00:09]}  g5 {[%clk 0:00:02]} 42. Rb1 {[%clk 0:00:09]}  Kd7 {[%clk 0:00:02]} 43. Rb7+ {[%clk 0:00:08]}  Kc8 {[%clk 0:00:02]} 44. Rg7 {[%clk 0:00:08]}  g4 {[%clk 0:00:02]} 45. Rh7 {[%clk 0:00:07]}  Nf3 {[%clk 0:00:02]} 46. Ne3 {[%clk 0:00:07]}  Ra1 {[%clk 0:00:02]} 47. Nf1 {[%clk 0:00:07]}  Ne1+ {[%clk 0:00:02]} 48. Kg1 {[%clk 0:00:07]}  Nf3+ {[%clk 0:00:02]} 49. Kg2 {[%clk 0:00:07]}  Ne1+ {[%clk 0:00:02]} 50. Kg1 {[%clk 0:00:07]}  Nxd3 {[%clk 0:00:02]} 51. Rxh5 {[%clk 0:00:08]}  Ra2 {[%clk 0:00:02]} 52. Rg5 {[%clk 0:00:07]}  Nxf2 {[%clk 0:00:02]} 53. Rg8+ {[%clk 0:00:07]}  Kd7 {[%clk 0:00:02]} 54. Ne3 {[%clk 0:00:08]}  Nxe4 {[%clk 0:00:02]} 55. Rxg4 {[%clk 0:00:07]}  Ra1+ {[%clk 0:00:02]} 56. Kg2 {[%clk 0:00:07]}  Ra2+ {[%clk 0:00:02]} 57. Kg1 {[%clk 0:00:07]}  Nd2 {[%clk 0:00:02]} 58. Rg7+ {[%clk 0:00:06]}  Ke6 {[%clk 0:00:02]} 59. Nd5 {[%clk 0:00:06]}  Nf3+ {[%clk 0:00:03]} 60. Kf1 {[%clk 0:00:05]}  e4 {[%clk 0:00:03]} 61. g4 {[%clk 0:00:04]}  Ke5 {[%clk 0:00:04]} 62. Nb6 {[%clk 0:00:03]}  e3 {[%clk 0:00:03]} 63. Re7+ {[%clk 0:00:02]}  Kf4 {[%clk 0:00:04]} 64. Nd5+ {[%clk 0:00:03]}  Kg3 {[%clk 0:00:03]} 65. Rxe3 {[%clk 0:00:03]}  Rf2# {[%clk 0:00:03]} 0-1


[Site "https://www.chess.com"]

[Event "Titled Tuesday Blitz August 22 Early 2023"]
[White "Kravtsiv, Martyn"]
[Black "seopie"]
[WhiteFideId "14113147"]
[WhiteElo "2852"]
[BlackElo "2534"]
[Result "1-0"]
[Round "3"]
[TimeControl "180+1"]
[Date "2023.08.22"]
[WhiteClock "0:01:00"]
[BlackClock "0:01:32"]
[Board "48"]

1. e4 {[%clk 0:03:00]}  c5 {[%clk 0:02:59]} 2. Nf3 {[%clk 0:03:01]}  d6 {[%clk 0:03:00]} 3. Bb5+ {[%clk 0:03:01]}  Nd7 {[%clk 0:02:59]} 4. d4 {[%clk 0:03:00]}  cxd4 {[%clk 0:03:00]} 5. Qxd4 {[%clk 0:03:01]}  Nf6 {[%clk 0:02:58]} 6. O-O {[%clk 0:02:59]}  a6 {[%clk 0:02:54]} 7. Bxd7+ {[%clk 0:02:59]}  Bxd7 {[%clk 0:02:54]} 8. Bg5 {[%clk 0:02:55]}  h6 {[%clk 0:02:52]} 9. Bxf6 {[%clk 0:02:54]}  gxf6 {[%clk 0:02:53]} 10. c4 {[%clk 0:02:53]}  Rc8 {[%clk 0:02:53]} 11. Nc3 {[%clk 0:02:49]}  e6 {[%clk 0:02:53]} 12. Rac1 {[%clk 0:02:44]}  Be7 {[%clk 0:02:53]} 13. Rfe1 {[%clk 0:02:40]}  Qa5 {[%clk 0:02:52]} 14. a3 {[%clk 0:02:13]}  Qc5 {[%clk 0:02:51]} 15. Qd2 {[%clk 0:02:11]}  h5 {[%clk 0:02:42]} 16. Ne2 {[%clk 0:01:55]}  h4 {[%clk 0:02:37]} 17. h3 {[%clk 0:01:55]}  Qh5 {[%clk 0:02:36]} 18. Qd3 {[%clk 0:01:51]}  Kf8 {[%clk 0:02:32]} 19. c5 {[%clk 0:01:46]}  Rxc5 {[%clk 0:02:13]} 20. Nf4 {[%clk 0:01:45]}  Rxc1 {[%clk 0:02:06]} 21. Nxh5 {[%clk 0:01:45]}  Rxe1+ {[%clk 0:02:06]} 22. Nxe1 {[%clk 0:01:46]}  Rxh5 {[%clk 0:02:06]} 23. Nf3 {[%clk 0:01:45]}  Bc6 {[%clk 0:02:04]} 24. Nd4 {[%clk 0:01:41]}  Bd7 {[%clk 0:02:04]} 25. b4 {[%clk 0:01:40]}  a5 {[%clk 0:02:00]} 26. Qc3 {[%clk 0:01:30]}  axb4 {[%clk 0:02:00]} 27. axb4 {[%clk 0:01:31]}  b5 {[%clk 0:01:59]} 28. Qc7 {[%clk 0:01:29]}  Be8 {[%clk 0:01:59]} 29. Qc8 {[%clk 0:01:06]}  d5 {[%clk 0:01:45]} 30. Nxb5 {[%clk 0:01:02]}  dxe4 {[%clk 0:01:36]} 31. Nc7 {[%clk 0:01:01]}  Bxb4 {[%clk 0:01:35]} 32. Qxe8+ {[%clk 0:01:00]}  Kg7 {[%clk 0:01:32]} 33. Nxe6+ {[%clk 0:01:00]} 1-0


[Site "https://www.chess.com"]

[Event "Titled Tuesday Blitz August 22 Early 2023"]
[White "Astafurov, Arseniy"]
[Black "Timofeev, Artyom"]
[WhiteFideId "24175218"]
[BlackFideId "4140419"]
[WhiteElo "2424"]
[BlackElo "2847"]
[Result "1/2-1/2"]
[Round "3"]
[TimeControl "180+1"]
[Date "2023.08.22"]
[WhiteClock "0:00:10"]
[BlackClock "0:00:06"]
[Board "50"]

1. c4 {[%clk 0:03:00]}  e6 {[%clk 0:02:59]} 2. Nf3 {[%clk 0:03:00]}  d5 {[%clk 0:02:58]} 3. g3 {[%clk 0:03:00]}  Bd6 {[%clk 0:02:56]} 4. Bg2 {[%clk 0:03:00]}  Ne7 {[%clk 0:02:56]} 5. b3 {[%clk 0:02:56]}  O-O {[%clk 0:02:55]} 6. O-O {[%clk 0:02:56]}  a5 {[%clk 0:02:55]} 7. d4 {[%clk 0:02:13]}  c6 {[%clk 0:02:53]} 8. Nbd2 {[%clk 0:02:09]}  a4 {[%clk 0:02:52]} 9. c5 {[%clk 0:01:58]}  Bc7 {[%clk 0:02:51]} 10. bxa4 {[%clk 0:01:58]}  b6 {[%clk 0:02:50]} 11. cxb6 {[%clk 0:01:50]}  Bxb6 {[%clk 0:02:50]} 12. Ba3 {[%clk 0:01:51]}  Ba6 {[%clk 0:02:47]} 13. Rc1 {[%clk 0:01:47]}  Bc7 {[%clk 0:02:44]} 14. Nb3 {[%clk 0:01:22]}  Bc4 {[%clk 0:02:38]} 15. Nfd2 {[%clk 0:01:19]}  Rxa4 {[%clk 0:02:30]} 16. Bxe7 {[%clk 0:01:10]}  Qxe7 {[%clk 0:02:30]} 17. Nc5 {[%clk 0:01:11]}  Rxa2 {[%clk 0:02:26]} 18. Nxc4 {[%clk 0:01:11]}  dxc4 {[%clk 0:02:27]} 19. Rxc4 {[%clk 0:01:12]}  e5 {[%clk 0:02:24]} 20. e3 {[%clk 0:01:04]}  Rd8 {[%clk 0:02:21]} 21. Qb1 {[%clk 0:01:02]}  Ra7 {[%clk 0:02:16]} 22. Qe4 {[%clk 0:00:40]}  Bd6 {[%clk 0:02:13]} 23. Nd3 {[%clk 0:00:35]}  exd4 {[%clk 0:02:10]} 24. Rxd4 {[%clk 0:00:35]}  Qf8 {[%clk 0:01:39]} 25. Rc1 {[%clk 0:00:31]}  g6 {[%clk 0:01:38]} 26. h4 {[%clk 0:00:28]}  Ra5 {[%clk 0:01:20]} 27. Nf4 {[%clk 0:00:19]}  Bxf4 {[%clk 0:01:10]} 28. Qxf4 {[%clk 0:00:18]}  Rxd4 {[%clk 0:01:04]} 29. Qxd4 {[%clk 0:00:19]}  c5 {[%clk 0:01:03]} 30. Qc4 {[%clk 0:00:19]}  Nd7 {[%clk 0:01:01]} 31. Qd5 {[%clk 0:00:16]}  Nf6 {[%clk 0:00:53]} 32. Qc6 {[%clk 0:00:16]}  Ng4 {[%clk 0:00:43]} 33. Bh3 {[%clk 0:00:10]}  Ne5 {[%clk 0:00:41]} 34. Qc7 {[%clk 0:00:10]}  Nd3 {[%clk 0:00:33]} 35. Rd1 {[%clk 0:00:05]}  Ra3 {[%clk 0:00:33]} 36. Bf1 {[%clk 0:00:06]}  c4 {[%clk 0:00:31]} 37. Qxc4 {[%clk 0:00:06]}  Ne5 {[%clk 0:00:31]} 38. Qe4 {[%clk 0:00:05]}  Ra5 {[%clk 0:00:25]} 39. Rd5 {[%clk 0:00:04]}  Rxd5 {[%clk 0:00:23]} 40. Qxd5 {[%clk 0:00:05]}  Qe7 {[%clk 0:00:24]} 41. Bg2 {[%clk 0:00:05]}  h5 {[%clk 0:00:23]} 42. Be4 {[%clk 0:00:05]}  Ng4 {[%clk 0:00:23]} 43. Bf3 {[%clk 0:00:05]}  Nf6 {[%clk 0:00:23]} 44. Qa8+ {[%clk 0:00:05]}  Kg7 {[%clk 0:00:23]} 45. Qb7 {[%clk 0:00:06]}  Qe5 {[%clk 0:00:22]} 46. Kg2 {[%clk 0:00:06]}  Qf5 {[%clk 0:00:21]} 47. Qc6 {[%clk 0:00:06]}  Qe5 {[%clk 0:00:21]} 48. Qb7 {[%clk 0:00:06]}  Qf5 {[%clk 0:00:21]} 49. Qc7 {[%clk 0:00:06]}  Qb5 {[%clk 0:00:16]} 50. Qe7 {[%clk 0:00:06]}  Qf5 {[%clk 0:00:16]} 51. e4 {[%clk 0:00:06]}  Qd7 {[%clk 0:00:15]} 52. Qe5 {[%clk 0:00:05]}  Qd8 {[%clk 0:00:11]} 53. Qc3 {[%clk 0:00:04]}  Qe7 {[%clk 0:00:10]} 54. Qd4 {[%clk 0:00:03]}  Qe6 {[%clk 0:00:10]} 55. Qe3 {[%clk 0:00:03]}  Qe5 {[%clk 0:00:09]} 56. Qd3 {[%clk 0:00:04]}  Ng8 {[%clk 0:00:08]} 57. Qd7 {[%clk 0:00:04]}  Ne7 {[%clk 0:00:08]} 58. Qd3 {[%clk 0:00:05]}  Nc6 {[%clk 0:00:08]} 59. Qd5 {[%clk 0:00:04]}  Qxd5 {[%clk 0:00:07]} 60. exd5 {[%clk 0:00:05]}  Nd4 {[%clk 0:00:08]} 61. Be4 {[%clk 0:00:06]}  Nb5 {[%clk 0:00:07]} 62. Bd3 {[%clk 0:00:06]}  Nd6 {[%clk 0:00:08]} 63. Kf3 {[%clk 0:00:07]}  Kf6 {[%clk 0:00:08]} 64. Kf4 {[%clk 0:00:08]}  Ke7 {[%clk 0:00:08]} 65. Kg5 {[%clk 0:00:07]}  Ne8 {[%clk 0:00:07]} 66. f3 {[%clk 0:00:05]}  Nc7 {[%clk 0:00:07]} 67. Bxg6 {[%clk 0:00:05]}  fxg6 {[%clk 0:00:06]} 68. Kxg6 {[%clk 0:00:06]}  Nxd5 {[%clk 0:00:06]} 69. Kxh5 {[%clk 0:00:04]}  Kf6 {[%clk 0:00:06]} 70. g4 {[%clk 0:00:03]}  Kg7 {[%clk 0:00:06]} 71. Kg5 {[%clk 0:00:04]}  Ne7 {[%clk 0:00:06]} 72. h5 {[%clk 0:00:04]}  Nd5 {[%clk 0:00:06]} 73. f4 {[%clk 0:00:04]}  Nc3 {[%clk 0:00:04]} 74. h6+ {[%clk 0:00:04]}  Kh7 {[%clk 0:00:04]} 75. Kh5 {[%clk 0:00:05]}  Nd5 {[%clk 0:00:04]} 76. f5 {[%clk 0:00:04]}  Nf6+ {[%clk 0:00:04]} 77. Kg5 {[%clk 0:00:05]}  Nd5 {[%clk 0:00:04]} 78. Kh5 {[%clk 0:00:04]}  Nf6+ {[%clk 0:00:04]} 79. Kh4 {[%clk 0:00:05]}  Kxh6 {[%clk 0:00:04]} 80. g5+ {[%clk 0:00:05]}  Kg7 {[%clk 0:00:05]} 81. gxf6+ {[%clk 0:00:06]}  Kxf6 {[%clk 0:00:05]} 82. Kg4 {[%clk 0:00:07]}  Kf7 {[%clk 0:00:05]} 83. Kg5 {[%clk 0:00:07]}  Kg7 {[%clk 0:00:05]} 84. f6+ {[%clk 0:00:08]}  Kf7 {[%clk 0:00:05]} 85. Kf5 {[%clk 0:00:08]}  Kf8 {[%clk 0:00:06]} 86. Kg6 {[%clk 0:00:09]}  Kg8 {[%clk 0:00:06]} 87. f7+ {[%clk 0:00:09]}  Kf8 {[%clk 0:00:06]} 88. Kf6 {[%clk 0:00:10]} 1/2-1/2


[Site "https://www.chess.com"]

[Event "Titled Tuesday Blitz August 22 Early 2023"]
[White "crosky"]
[Black "Piorun, Kacper"]
[BlackFideId "1130420"]
[WhiteElo "2356"]
[BlackElo "2844"]
[Result "0-1"]
[Round "3"]
[TimeControl "180+1"]
[Date "2023.08.22"]
[WhiteClock "0:01:06"]
[BlackClock "0:02:03"]
[Board "51"]

1. c4 {[%clk 0:03:00]}  g6 {[%clk 0:02:59]} 2. Nc3 {[%clk 0:02:59]}  Bg7 {[%clk 0:03:00]} 3. d4 {[%clk 0:03:00]}  c5 {[%clk 0:02:59]} 4. d5 {[%clk 0:02:59]}  Bxc3+ {[%clk 0:02:59]} 5. bxc3 {[%clk 0:03:00]}  d6 {[%clk 0:02:56]} 6. h4 {[%clk 0:03:00]}  f5 {[%clk 0:02:50]} 7. h5 {[%clk 0:02:59]}  gxh5 {[%clk 0:02:50]} 8. e4 {[%clk 0:02:54]}  Nf6 {[%clk 0:02:50]} 9. Bg5 {[%clk 0:02:50]}  Qa5 {[%clk 0:02:45]} 10. Rc1 {[%clk 0:02:36]}  Nbd7 {[%clk 0:02:25]} 11. Be2 {[%clk 0:02:30]}  fxe4 {[%clk 0:02:22]} 12. Bxh5+ {[%clk 0:02:30]}  Kd8 {[%clk 0:02:23]} 13. Ne2 {[%clk 0:02:19]}  Ne5 {[%clk 0:02:22]} 14. Bxf6 {[%clk 0:01:58]}  Nd3+ {[%clk 0:02:18]} 15. Kf1 {[%clk 0:01:58]}  exf6 {[%clk 0:02:18]} 16. Rb1 {[%clk 0:01:39]}  Kc7 {[%clk 0:02:14]} 17. Bg6 {[%clk 0:01:27]}  f5 {[%clk 0:02:14]} 18. Ng3 {[%clk 0:01:06]}  Qxa2 {[%clk 0:02:03]} 0-1


[Site "https://www.chess.com"]